bitfinex/quotes_BTCUSD_20250224
["timestamp","ask_amount","ask_price","bid_price","bid_amount"]
[1740358018572,0.00052864,96529.0,96528.0,0.48673512]
[1740358018775,0.00052864,96529.0,96528.0,1.19843437]
[1740358019190,0.00052864,96529.0,96528.0,1.20620445]
[1740358020663,0.00052864,96529.0,96528.0,1.20944773]
[1740358021304,0.00052864,96529.0,96528.0,1.21544773]
[1740358021713,0.00052864,96529.0,96528.0,1.22044773]
[1740358024198,0.00137834,96529.0,96528.0,1.22044773]
[1740358028768,0.00137834,96529.0,96528.0,1.13743693]
[1740358029998,0.00137834,96529.0,96528.0,1.14551693]
[1740358031683,0.00137834,96529.0,96528.0,1.15787126]
[1740358035473,0.00137834,96529.0,96528.0,1.14979126]
[1740358035676,0.00137834,96529.0,96528.0,1.15787126]
[1740358036449,0.00137834,96529.0,96528.0,1.14551693]
[1740358039447,0.00137834,96529.0,96528.0,1.15788892]
[1740358044133,0.00137834,96529.0,96528.0,1.17788892]
[1740358044854,0.27627895,96568.0,96534.0,0.305385]
[1740358045075,0.27627895,96568.0,96534.0,1.06269923]
[1740358045076,0.00212811,96535.0,96534.0,1.06269923]
[1740358046243,0.00212811,96535.0,96534.0,1.06669923]
[1740358046442,0.00212811,96535.0,96534.0,1.0868413]
[1740358046661,0.00212811,96535.0,96534.0,1.09008458]
[1740358046871,0.00212811,96535.0,96534.0,1.07872958]
[1740358048896,0.00212811,96535.0,96534.0,1.11100224]
[1740358049319,0.00212811,96535.0,96534.0,1.07872958]
[1740358049526,0.00212811,96535.0,96534.0,1.11100982]
[1740358052044,0.00212811,96535.0,96534.0,1.13135915]
[1740358052249,0.00212811,96535.0,96534.0,1.12735915]
[1740358052448,0.00212811,96535.0,96534.0,1.12435915]
[1740358052664,0.00212811,96535.0,96534.0,1.13735915]
[1740358053054,0.00212811,96535.0,96534.0,1.15735915]
[1740358053259,0.00212811,96535.0,96534.0,1.20335915]
[1740358053771,0.00212811,96535.0,96534.0,1.19635915]
[1740358054175,0.00212811,96535.0,96534.0,1.20335915]
[1740358054428,0.0004,96569.0,96560.0,0.155343]
[1740358054602,0.0004,96569.0,96560.0,0.98815198]
[1740358054603,0.00182934,96561.0,96560.0,0.98815198]
[1740358054839,0.00182934,96561.0,96560.0,0.99351269]
[1740358055277,0.00182934,96561.0,96560.0,1.00385634]
[1740358055661,0.00182934,96561.0,96560.0,1.01765476]
[1740358055867,0.00182934,96561.0,96560.0,1.02065476]
[1740358056056,0.00182934,96561.0,96560.0,0.85831176]
[1740358056283,0.00182934,96561.0,96560.0,1.01365476]
[1740358056486,0.00182934,96561.0,96560.0,0.70093419]
[1740358056683,0.00182934,96561.0,96560.0,0.85127719]
[1740358056889,0.00182934,96561.0,96560.0,0.8389052]
[1740358057205,0.00182934,96561.0,96560.0,0.8459052]
[1740358057373,0.00182934,96561.0,96560.0,0.8389052]
[1740358057582,0.00182934,96561.0,96560.0,0.6835622]
[1740358058161,0.00182934,96561.0,96560.0,0.43779212]
[1740358058486,0.00182934,96561.0,96560.0,0.44279212]
[1740358058689,0.00182934,96561.0,96560.0,0.44979212]
[1740358058845,0.00182934,96561.0,96560.0,0.44479212]
[1740358059051,0.00182934,96561.0,96560.0,0.44879212]
[1740358059356,0.00182934,96561.0,96560.0,0.44079212]
[1740358059715,0.00182934,96561.0,96560.0,0.44279212]
[1740358064022,0.00182934,96561.0,96560.0,0.59813512]
[1740358064829,0.00182934,96561.0,96560.0,0.59513512]
[1740358064993,0.00182934,96561.0,96560.0,0.59313512]
[1740358065427,0.00182934,96561.0,96560.0,0.44379212]
[1740358066086,0.15717134,96561.0,96560.0,0.44379212]
[1740358066266,0.23217134,96561.0,96560.0,0.43718897]
[1740358066478,0.23217134,96561.0,96560.0,0.44487792]
[1740358066687,0.23217134,96561.0,96560.0,0.43887792]
[1740358066883,0.23217134,96561.0,96560.0,0.43987792]
[1740358068173,0.23217134,96561.0,96560.0,0.43763464]
[1740358068638,0.23217134,96561.0,96560.0,0.11033464]
[1740358068812,0.23217134,96561.0,96560.0,0.11133464]
[1740358069041,0.23217134,96561.0,96560.0,0.10364569]
[1740358076813,0.28167134,96561.0,96560.0,0.001]
[1740358077573,0.12632934,96561.0,96538.0,0.480678]
[1740358077905,0.207151,96548.0,96539.0,0.10264569]
[1740358078107,0.155365,96547.0,96540.0,0.10832963]
[1740358078315,0.207142,96552.0,96541.0,0.10264569]
[1740358078507,0.155366,96546.0,96541.0,0.11035127]
[1740358079851,0.0833,96554.0,96541.0,0.11235127]
[1740358080061,0.155361,96549.0,96541.0,0.11235127]
[1740358080267,0.207128,96559.0,96541.0,0.11235127]
[1740358080472,0.155344,96560.0,96544.0,0.289159]
[1740358080678,0.05132934,96561.0,96547.0,0.155364]
[1740358080886,0.26863978,96561.0,96548.0,0.11034862]
[1740358081087,0.155352,96555.0,96548.0,0.11034862]
[1740358081905,0.06151678,96561.0,96548.0,0.11034862]
[1740358082275,0.01201678,96561.0,96551.0,0.10264569]
[1740358082522,0.00182934,96561.0,96558.0,0.155345]
[1740358082728,0.00182934,96561.0,96559.0,0.10264569]
[1740358082931,0.00182934,96561.0,96559.0,0.11034446]
[1740358083868,0.00182934,96561.0,96560.0,0.155343]
[1740358084076,0.00182934,96561.0,96560.0,0.11034408]
[1740358085105,0.00182934,96561.0,96560.0,0.11658646]
[1740358085546,0.00182934,96561.0,96560.0,0.11358646]
[1740358086057,0.00182934,96561.0,96560.0,0.11958646]
[1740358088045,0.00182934,96561.0,96560.0,0.11558646]
[1740358088654,0.00182934,96561.0,96560.0,0.11858646]
[1740358088896,0.00182934,96561.0,96560.0,0.11658646]
[1740358089172,0.00182934,96561.0,96560.0,0.11858646]
[1740358098311,0.00182934,96561.0,96560.0,0.13965189]
[1740358103924,0.00182934,96561.0,96560.0,0.69599489]
[1740358104708,0.00182934,96561.0,96560.0,0.67492946]
[1740358104931,0.00182934,96561.0,96560.0,0.68947031]
[1740358105133,0.00182934,96561.0,96560.0,0.69720419]
[1740358105298,0.00182934,96561.0,96560.0,0.69520419]
[1740358105507,0.155313,96579.0,96568.0,0.15533]
[1740358105724,0.155313,96579.0,96569.0,0.11034279]
[1740358106127,0.155311,96580.0,96570.0,0.4085]
[1740358106322,0.155311,96580.0,96571.0,0.11034203]
[1740358106523,0.00174363,96581.0,96571.0,0.11034203]
[1740358106739,0.00174363,96581.0,96571.0,0.11158451]
[1740358106936,0.01238635,96581.0,96573.0,0.10264569]
[1740358107148,0.01238635,96581.0,96574.0,0.00769019]
[1740358107345,0.01238635,96581.0,96575.0,0.10264569]
[1740358107593,0.01238635,96581.0,96576.0,0.00768943]
[1740358107737,0.01238635,96581.0,96577.0,0.10264569]
[1740358107942,0.01238635,96581.0,96578.0,0.00768867]
[1740358108145,0.01238635,96581.0,96579.0,0.10264569]
[1740358108351,0.01238635,96581.0,96580.0,0.00768792]
[1740358108561,0.01238635,96581.0,96580.0,0.11033361]
[1740358109240,0.00174363,96581.0,96580.0,0.26564461]
[1740358109463,0.00174363,96581.0,96580.0,0.34734461]
[1740358109849,0.00174363,96581.0,96580.0,0.34834461]
[1740358110222,0.00174363,96581.0,96580.0,0.35158699]
[1740358110932,0.00174363,96581.0,96580.0,0.35931022]
[1740358111737,0.00174363,96581.0,96580.0,0.37285107]
[1740358111943,0.00174363,96581.0,96580.0,0.37385107]
[1740358112110,0.00174363,96581.0,96580.0,0.37585107]
[1740358112555,0.00174363,96581.0,96580.0,0.94023107]
[1740358112755,0.00174363,96581.0,96580.0,0.98593107]
[1740358113376,0.00174363,96581.0,96580.0,0.98393107]
[1740358113783,0.00174363,96581.0,96580.0,0.98593107]
[1740358115001,0.00174363,96581.0,96580.0,0.97620784]
[1740358115201,0.00174363,96581.0,96580.0,0.97520784]
[1740358115400,0.00174363,96581.0,96580.0,0.98220784]
[1740358115627,0.00174363,96581.0,96580.0,0.98920784]
[1740358115785,0.00174363,96581.0,96580.0,0.97520784]
[1740358116211,0.00174363,96581.0,96580.0,0.98220784]
[1740358116615,0.00174363,96581.0,96580.0,0.98920784]
[1740358117677,0.00174363,96581.0,96580.0,0.98112784]
[1740358122799,0.00174363,96581.0,96580.0,0.98883298]
[1740358123788,0.00174363,96581.0,96580.0,0.99691298]
[1740358126009,0.00174363,96581.0,96580.0,1.01775033]
[1740358127318,0.00174363,96581.0,96580.0,0.99691298]
[1740358132342,0.00174363,96581.0,96580.0,0.9936706]
[1740358133890,0.00174363,96581.0,96580.0,0.98596546]
[1740358136231,0.00174363,96581.0,96580.0,0.94026546]
[1740358136590,0.00174363,96581.0,96580.0,0.93218546]
[1740358140355,0.00174363,96581.0,96580.0,0.93991078]
[1740358140704,0.0008501,96591.0,96590.0,0.155295]
[1740358140912,0.0008501,96591.0,96590.0,0.26448164]
[1740358141745,0.0008501,96591.0,96590.0,0.27148164]
[1740358142303,0.0008501,96591.0,96590.0,0.27920696]
[1740358142682,0.0008501,96591.0,96590.0,0.60450696]
[1740358142861,0.0008501,96591.0,96590.0,0.60950696]
[1740358143385,0.0008501,96591.0,96590.0,0.6127476]
[1740358145622,0.0317002,96599.0,96590.0,0.6645126]
[1740358145865,0.0317002,96599.0,96593.0,0.10264569]
[1740358146215,0.0317002,96599.0,96594.0,0.00653965]
[1740358146414,0.0317002,96599.0,96595.0,0.10264569]
[1740358146594,0.0317002,96599.0,96596.0,0.006539]
[1740358146794,0.0317002,96599.0,96597.0,0.10264569]
[1740358147842,0.0317002,96599.0,96598.0,0.00653835]
[1740358148045,0.0317002,96599.0,96598.0,0.10918404]
[1740358148327,0.0317002,96599.0,96598.0,0.10264569]
[1740358148493,0.0317002,96599.0,96598.0,0.11690936]
[1740358148650,0.0317002,96599.0,96598.0,0.12015]
[1740358149483,0.0317002,96599.0,96598.0,0.11361165]
[1740358149803,0.0317002,96599.0,96598.0,0.11661165]
[1740358149978,0.0317002,96599.0,96598.0,0.12061165]
[1740358150189,0.0317002,96599.0,96598.0,0.12715]
[1740358150570,0.0317002,96599.0,96598.0,0.12061165]
[1740358150780,1.05,96600.0,96598.0,0.11942468]
[1740358151006,1.05,96600.0,96599.0,0.10264569]
[1740358152064,1.05,96600.0,96599.0,0.10588633]
[1740358152303,1.05,96600.0,96599.0,0.11362868]
[1740358153684,1.05,96600.0,96599.0,0.12616671]
[1740358153931,1.05,96600.0,96599.0,0.28144771]
[1740358154654,1.05,96600.0,96599.0,0.45146671]
[1740358157526,1.0508497,96600.0,96599.0,0.45146671]
[1740358158378,1.0508497,96600.0,96599.0,0.44492868]
[1740358158695,1.0508497,96600.0,96599.0,0.45254408]
[1740358159082,1.0508497,96600.0,96599.0,0.60782508]
[1740358159287,1.0508497,96600.0,96599.0,0.45254408]
[1740358159496,1.0508497,96600.0,96599.0,0.60782508]
[1740358160570,1.0508497,96600.0,96599.0,0.69022508]
[1740358160774,1.0508497,96600.0,96599.0,0.70476593]
[1740358161014,1.0508497,96600.0,96599.0,0.70076593]
[1740358161219,1.0508497,96600.0,96599.0,0.74956593]
[1740358161431,1.0508497,96600.0,96599.0,0.75656593]
[1740358162224,1.0508497,96600.0,96599.0,0.75456593]
[1740358162566,1.0508497,96600.0,96599.0,0.75956593]
[1740358163676,1.0508497,96600.0,96599.0,0.47308493]
[1740358163878,1.0508497,96600.0,96599.0,0.45854408]
[1740358164087,1.2061287,96600.0,96599.0,0.45854408]
[1740358164462,1.2061287,96600.0,96599.0,0.45092868]
[1740358164884,1.2061287,96600.0,96599.0,0.45852859]
[1740358165684,1.2061287,96600.0,96599.0,0.45352859]
[1740358166041,1.2061287,96600.0,96599.0,0.44178624]
[1740358166215,1.2061287,96600.0,96599.0,0.4425456]
[1740358166560,1.2061287,96600.0,96599.0,0.1172456]
[1740358166756,1.2061287,96600.0,96599.0,0.10964569]
[1740358170606,1.2061287,96600.0,96599.0,0.10264569]
[1740358170810,1.2061287,96600.0,96599.0,0.10434469]
[1740358171050,1.2061287,96600.0,96599.0,0.10534469]
[1740358178776,1.2061287,96600.0,96599.0,0.10434469]
[1740358179573,1.2061287,96600.0,96599.0,0.10534469]
[1740358180038,1.2061287,96600.0,96599.0,0.10434469]
[1740358180453,1.2061287,96600.0,96599.0,0.10534469]
[1740358182074,1.2061287,96600.0,96599.0,0.10434469]
[1740358184440,1.2061287,96600.0,96599.0,0.001699]
[1740358185638,1.3322287,96600.0,96599.0,0.001699]
[1740358185837,1.36568599,96600.0,96599.0,0.001699]
[1740358186230,1.3322287,96600.0,96599.0,0.001699]
[1740358186992,1.3322287,96600.0,96599.0,0.002699]
[1740358187213,1.4822287,96600.0,96599.0,0.002699]
[1740358187372,1.6269957,96600.0,96599.0,0.002699]
[1740358188312,1.5849647,96600.0,96599.0,0.002699]
[1740358188890,1.5859647,96600.0,96599.0,0.002699]
[1740358189315,1.5849647,96600.0,96599.0,0.002699]
[1740358189513,1.5859647,96600.0,96599.0,0.003699]
[1740358193275,1.4832287,96600.0,96599.0,0.003699]
[1740358193591,1.6084627,96600.0,96599.0,0.003699]
[1740358196291,1.5855627,96600.0,96599.0,0.003699]
[1740358198040,1.4832287,96600.0,96599.0,0.003699]
[1740358198235,1.6033027,96600.0,96599.0,0.003699]
[1740358204660,1.4832287,96600.0,96599.0,0.003699]
[1740358204835,2.0230197,96600.0,96599.0,0.003699]
[1740358205470,1.9489627,96600.0,96599.0,0.003699]
[1740358212133,0.305308,96582.0,96581.0,0.0016994]
[1740358213496,0.306308,96582.0,96581.0,0.0016994]
[1740358213701,0.307308,96582.0,96581.0,0.0016994]
[1740358217477,0.31493985,96582.0,96581.0,0.0016994]
[1740358228898,0.155329,96569.0,96568.0,0.07588729]
[1740358229092,0.155329,96569.0,96568.0,0.00889814]
[1740358229267,0.155329,96569.0,96568.0,4.283e-05]
[1740358230563,0.207077,96583.0,96569.0,0.0475]
[1740358230759,0.155319,96576.0,96570.0,0.10264569]
[1740358231007,0.00763185,96582.0,96570.0,0.11186259]
[1740358231235,0.16294085,96582.0,96570.0,0.11186259]
[1740358231479,0.155315,96578.0,96570.0,0.11186259]
[1740358231682,0.15763185,96582.0,96570.0,0.11186259]
[1740358231887,0.003,96576.0,96571.0,0.0804]
[1740358232089,0.006,96576.0,96572.0,0.11204554]
[1740358232293,0.006,96576.0,96575.0,0.155319]
[1740358232294,0.003,96576.0,96575.0,0.155319]
[1740358232505,0.003,96576.0,96575.0,0.24374448]
[1740358233163,0.15531,96581.0,96575.0,0.16054448]
[1740358233363,0.207075,96583.0,96577.0,0.0833]
[1740358233564,0.002,96578.0,96577.0,0.0833]
[1740358233982,0.155309,96582.0,96577.0,0.0833]
[1740358234640,0.15132418,96582.0,96577.0,0.0833]
[1740358234812,0.15132418,96582.0,96578.0,0.10264569]
[1740358235396,0.155308,96582.0,96578.0,0.10264569]
[1740358235788,0.155313,96579.0,96578.0,0.10264569]
[1740358236851,0.00786658,96585.0,96579.0,0.0827]
[1740358237056,1.0508497,96600.0,96582.0,0.18154569]
[1740358237057,0.00850093,96599.0,96582.0,0.18154569]
[1740358237254,0.155283,96598.0,96590.0,0.1288]
[1740358237415,0.0008502,96599.0,96592.0,0.1288]
[1740358237615,0.0008502,96599.0,96598.0,0.0789]
[1740358237840,0.0008502,96599.0,96598.0,0.18154569]
[1740358238762,0.0038502,96599.0,96598.0,0.18154569]
[1740358239077,0.00393001,96599.0,96598.0,0.18354569]
[1740358239431,0.00393001,96599.0,96598.0,0.47063849]
[1740358240011,0.00093001,96599.0,96598.0,0.47063849]
[1740358240436,0.00093001,96599.0,96598.0,0.47363849]
[1740358241456,0.00093001,96599.0,96598.0,0.47687904]
[1740358242076,0.00093001,96599.0,96598.0,0.80217904]
[1740358242902,0.00093001,96599.0,96598.0,0.81347934]
[1740358243237,0.00093001,96599.0,96598.0,0.81047934]
[1740358243440,0.00093001,96599.0,96598.0,0.81547934]
[1740358243851,0.00093001,96599.0,96598.0,0.81347934]
[1740358244202,0.00093001,96599.0,96598.0,0.64765649]
[1740358244402,0.15621101,96599.0,96598.0,0.51584569]
[1740358244600,0.15621101,96599.0,96598.0,0.52354989]
[1740358244804,0.15621101,96599.0,96598.0,0.44464989]
[1740358245010,0.15621101,96599.0,96598.0,0.3420042]
[1740358245571,0.15621101,96599.0,96598.0,0.0127042]
[1740358246186,0.15621101,96599.0,96598.0,0.0077042]
[1740358246389,0.155295,96590.0,96589.0,0.0826]
[1740358246599,0.155295,96590.0,96589.0,0.18524569]
[1740358247944,0.155295,96590.0,96589.0,0.18724569]
[1740358249582,0.155295,96590.0,96589.0,0.19024569]
[1740358250361,0.155295,96590.0,96589.0,0.10764569]
[1740358252084,0.00193001,96599.0,96589.0,0.10764569]
[1740358252291,0.155295,96590.0,96589.0,0.005]
[1740358253158,0.155295,96590.0,96589.0,0.002]
[1740358253809,0.155306,96583.0,96582.0,0.0017006]
[1740358254458,0.155306,96583.0,96582.0,0.10434629]
[1740358255015,0.1658637,96583.0,96582.0,0.10634629]
[1740358256339,0.1658637,96583.0,96582.0,0.10934629]
[1740358265687,0.1658637,96583.0,96582.0,0.10634629]
[1740358265840,0.1658637,96583.0,96582.0,0.10434629]
[1740358266041,0.1658637,96583.0,96582.0,0.10534629]
[1740358266244,0.1658637,96583.0,96582.0,0.10634629]
[1740358270626,0.30187971,96600.0,96598.0,0.175282]
[1740358270814,0.30187971,96600.0,96583.0,0.01454085]
[1740358270815,0.0008502,96632.0,96631.0,0.155229]
[1740358271024,0.0008502,96632.0,96623.0,0.23224152]
[1740358271232,0.0008502,96632.0,96623.0,0.231]
[1740358271855,0.0008502,96632.0,96624.0,0.01454085]
[1740358272056,0.0008502,96632.0,96624.0,0.01778023]
[1740358272317,0.0008502,96632.0,96630.0,0.10264569]
[1740358272526,0.00127849,96632.0,96631.0,0.25787469]
[1740358273164,0.00820967,96635.0,96634.0,0.155224]
[1740358273367,0.00085,96658.0,96648.0,0.40104285]
[1740358273577,0.00085,96658.0,96648.0,0.50368854]
[1740358273789,0.00052846,96649.0,96648.0,0.19848654]
[1740358274205,0.00052846,96649.0,96648.0,0.20652654]
[1740358274635,0.00052846,96649.0,96648.0,0.28953734]
[1740358274841,0.00152846,96649.0,96648.0,0.29653734]
[1740358275915,0.00152846,96649.0,96648.0,0.30253734]
[1740358276113,0.00052846,96649.0,96648.0,0.29553734]
[1740358276324,0.00052846,96649.0,96648.0,0.29453734]
[1740358276506,0.00137876,96649.0,96648.0,0.61983734]
[1740358276701,0.00137876,96649.0,96648.0,0.53078654]
[1740358276933,0.00137876,96649.0,96648.0,0.53778654]
[1740358277231,0.00137876,96649.0,96648.0,0.52324569]
[1740358277428,0.00137876,96649.0,96648.0,0.44194569]
[1740358279191,0.15657876,96649.0,96648.0,0.44194569]
[1740358279404,0.00137876,96649.0,96648.0,0.44194569]
[1740358281222,0.00137876,96649.0,96648.0,0.11664569]
[1740358281620,0.00137876,96649.0,96648.0,0.014]
[1740358281876,0.15137876,96649.0,96648.0,0.014]
[1740358282319,0.155245,96621.0,96620.0,0.16483083]
[1740358282531,0.155244,96622.0,96620.0,0.10264569]
[1740358282748,0.206936,96648.0,96621.0,0.10264569]
[1740358282955,0.15,96647.0,96630.0,0.16483083]
[1740358283156,0.155229,96631.0,96630.0,0.16483083]
[1740358283361,0.155236,96627.0,96621.0,0.16483083]
[1740358283618,0.15,96647.0,96621.0,0.16483083]
[1740358283797,0.155241,96624.0,96622.0,0.10264569]
[1740358284541,0.155238,96626.0,96622.0,0.10264569]
[1740358284686,0.206965,96635.0,96622.0,0.10264569]
[1740358284896,0.206951,96642.0,96622.0,0.10264569]
[1740358285117,0.155236,96627.0,96622.0,0.10264569]
[1740358285520,0.206953,96640.0,96622.0,0.10464569]
[1740358285735,0.207981,96627.0,96622.0,0.10464569]
[1740358285919,0.206981,96627.0,96622.0,0.10464569]
[1740358286280,0.155239,96625.0,96622.0,0.10564569]
[1740358286479,0.155238,96626.0,96622.0,0.10564569]
[1740358286687,0.155239,96625.0,96622.0,0.10564569]
[1740358287100,0.0105999,96631.0,96622.0,0.10364569]
[1740358287301,0.206975,96630.0,96622.0,0.10364569]
[1740358287579,0.155236,96627.0,96622.0,0.10364569]
[1740358287783,0.002,96635.0,96622.0,0.10364569]
[1740358287983,0.206958,96638.0,96625.0,0.16483083]
[1740358288174,0.155235,96628.0,96626.0,0.10264569]
[1740358292325,0.155236,96627.0,96626.0,0.10264569]
[1740358296818,0.00774827,96637.0,96626.0,0.10264569]
[1740358296819,0.155222,96636.0,96626.0,0.10264569]
[1740358297067,0.155218,96639.0,96630.0,0.16483083]
[1740358297287,4.8e-05,96664.0,96632.0,0.0775]
[1740358297499,4.8e-05,96664.0,96639.0,0.16483083]
[1740358297500,0.20692,96656.0,96639.0,0.16483083]
[1740358297705,0.156046,96652.0,96640.0,0.11204059]
[1740358297911,0.01029559,96650.0,96640.0,0.11204059]
[1740358298117,0.21722959,96650.0,96640.0,0.11204059]
[1740358298334,0.21722859,96650.0,96640.0,0.11204059]
[1740358298540,0.155206,96646.0,96640.0,0.11204059]
[1740358298759,0.155207,96645.0,96640.0,0.11204059]
[1740358299179,0.206941,96646.0,96640.0,0.11204059]
[1740358299385,0.155209,96644.0,96640.0,0.11204059]
[1740358299796,0.206942,96645.0,96640.0,0.11204059]
[1740358300010,0.002,96646.0,96640.0,0.11204059]
[1740358300525,0.002,96644.0,96640.0,0.11204059]
[1740358300727,0.15521,96643.0,96640.0,0.11204059]
[1740358300957,0.206941,96646.0,96640.0,0.11204059]
[1740358301173,0.002,96644.0,96640.0,0.10264569]
[1740358301551,0.208941,96646.0,96641.0,0.00939441]
[1740358301754,0.001,96643.0,96642.0,0.10264569]
[1740358302007,0.15621,96643.0,96642.0,0.1120396]
[1740358302570,0.15521,96643.0,96642.0,0.1120396]
[1740358302966,0.15621,96643.0,96642.0,0.1120396]
[1740358303794,0.15721,96643.0,96642.0,0.1120396]
[1740358304754,0.15721,96643.0,96642.0,0.10264569]
[1740358305219,0.002,96643.0,96630.0,0.00771688]
[1740358305426,0.155229,96631.0,96630.0,0.00771688]
[1740358306050,0.155236,96627.0,96626.0,0.0016998]
[1740358306472,0.155236,96627.0,96626.0,0.11372819]
[1740358306686,0.155236,96627.0,96626.0,0.10434549]
[1740358308348,0.155236,96627.0,96626.0,0.11373929]
[1740358309616,0.155233,96629.0,96626.0,0.11373929]
[1740358309825,0.15,96653.0,96627.0,0.10264569]
[1740358310058,0.15,96653.0,96630.0,0.16483083]
[1740358310265,0.15,96655.0,96631.0,0.10264569]
[1740358310495,0.155215,96640.0,96639.0,0.16483083]
[1740358310801,0.206936,96648.0,96639.0,0.10264569]
[1740358311004,0.15,96655.0,96640.0,0.10264569]
[1740358311210,0.15521,96644.0,96640.0,0.10264569]
[1740358311410,0.00437876,96649.0,96640.0,0.10264569]
[1740358311557,0.155211,96643.0,96640.0,0.10264569]
[1740358311986,0.155212,96642.0,96641.0,0.0093988]
[1740358312195,0.155212,96642.0,96641.0,0.11204449]
[1740358312445,0.155212,96642.0,96641.0,0.10264569]
[1740358312658,0.0008499,96643.0,96641.0,0.10264569]
[1740358312857,0.0008499,96643.0,96642.0,0.10264569]
[1740358313975,0.0018499,96643.0,96642.0,0.18444569]
[1740358314181,0.0018499,96643.0,96642.0,0.19217033]
[1740358314592,0.0028499,96643.0,96642.0,0.19217033]
[1740358315049,0.0028499,96643.0,96642.0,0.20795275]
[1740358315272,0.0018499,96643.0,96642.0,0.20671118]
[1740358315473,0.0018499,96643.0,96642.0,0.36516199]
[1740358315673,0.0028499,96643.0,96642.0,0.41984078]
[1740358318189,0.0028499,96643.0,96642.0,0.41660197]
[1740358318996,0.0028499,96643.0,96642.0,0.41984062]
[1740358319175,0.0028499,96643.0,96642.0,0.42218531]
[1740358320999,0.0028499,96643.0,96642.0,0.57218531]
[1740358321834,0.0018499,96643.0,96642.0,0.57218531]
[1740358322036,0.0008499,96643.0,96642.0,0.57218531]
[1740358322325,0.0008499,96643.0,96642.0,0.57918531]
[1740358323414,0.0018499,96643.0,96642.0,0.58618531]
[1740358323830,0.0018499,96643.0,96642.0,0.59003887]
[1740358324571,0.0018499,96643.0,96642.0,0.58614461]
[1740358326548,0.0018499,96643.0,96642.0,0.59003873]
[1740358326963,0.0018499,96643.0,96642.0,0.91533873]
[1740358332797,0.0018499,96643.0,96642.0,1.14633873]
[1740358335431,0.0018499,96643.0,96642.0,1.15437873]
[1740358337872,9e-07,96643.0,96642.0,1.17437873]
[1740358338503,9e-07,96643.0,96642.0,1.14633873]
[1740358338710,9e-07,96643.0,96642.0,1.15437873]
[1740358339520,9e-07,96643.0,96642.0,1.14633873]
[1740358339891,9e-07,96643.0,96642.0,1.15437873]
[1740358340261,9e-07,96643.0,96642.0,1.13179788]
[1740358340473,9e-07,96643.0,96642.0,1.13983788]
[1740358340680,9e-07,96643.0,96642.0,0.90079788]
[1740358341491,9e-07,96643.0,96642.0,0.89686363]
[1740358341644,9e-07,96643.0,96642.0,0.91528536]
[1740358342314,9e-07,96643.0,96642.0,0.91140448]
[1740358343504,9e-07,96643.0,96642.0,0.86610448]
[1740358343668,9e-07,96643.0,96642.0,0.46455163]
[1740358345189,9e-07,96643.0,96642.0,0.13925163]
[1740358347538,9e-07,96643.0,96642.0,0.13322739]
[1740358347910,0.0008511,96643.0,96642.0,0.13322739]
[1740358348892,0.1560611,96643.0,96642.0,0.13322739]
[1740358349494,0.0008511,96643.0,96642.0,0.13322739]
[1740358349907,0.0008511,96643.0,96642.0,0.11458474]
[1740358350082,0.0008511,96643.0,96642.0,0.11134609]
[1740358350284,0.0008502,96643.0,96642.0,0.12201514]
[1740358350484,0.0008502,96643.0,96642.0,0.12701514]
[1740358350725,0.0008502,96643.0,96642.0,0.12101514]
[1740358350934,0.0008502,96643.0,96642.0,0.11601514]
[1740358351137,0.0008502,96643.0,96642.0,0.11901514]
[1740358351338,0.0008502,96643.0,96642.0,0.12201514]
[1740358352065,0.1560602,96643.0,96642.0,0.12201514]
[1740358352471,0.1560602,96643.0,96642.0,0.11034609]
[1740358352729,0.16637702,96643.0,96642.0,0.11034609]
[1740358352936,0.0008502,96643.0,96642.0,0.11034609]
[1740358353136,0.0008502,96643.0,96642.0,0.10434609]
[1740358353561,0.01134669,96643.0,96642.0,0.27722917]
[1740358353798,0.01134669,96643.0,96642.0,0.27422917]
[1740358354191,0.01134669,96643.0,96642.0,0.27722917]
[1740358354364,0.0008502,96643.0,96642.0,0.27422917]
[1740358354575,0.0008502,96643.0,96642.0,0.27722917]
[1740358355107,0.0008502,96643.0,96642.0,0.29177002]
[1740358355513,0.0008502,96643.0,96642.0,0.28877002]
[1740358355725,0.0008502,96643.0,96642.0,0.29177002]
[1740358356088,0.0008502,96643.0,96642.0,0.28877002]
[1740358356511,0.0008502,96643.0,96642.0,0.29277002]
[1740358356715,0.0008502,96643.0,96642.0,0.28977002]
[1740358356916,0.0008502,96643.0,96642.0,0.12401717]
[1740358357500,0.0008502,96643.0,96642.0,0.127256]
[1740358358475,0.0008502,96643.0,96642.0,0.123256]
[1740358358883,0.0008502,96643.0,96642.0,0.125256]
[1740358359302,0.0008502,96643.0,96642.0,0.121256]
[1740358359536,0.0008502,96643.0,96642.0,0.12715766]
[1740358359660,0.0008502,96643.0,96642.0,0.12391883]
[1740358359864,0.0008502,96643.0,96642.0,0.11769258]
[1740358362542,0.0008502,96643.0,96642.0,0.27414618]
[1740358362766,0.0008502,96643.0,96642.0,0.27290458]
[1740358363792,0.0008502,96643.0,96642.0,0.27614341]
[1740358366445,0.0008502,96643.0,96642.0,0.12093141]
[1740358370185,0.0008502,96643.0,96642.0,0.27614341]
[1740358374354,0.0008502,96643.0,96642.0,0.35834341]
[1740358377987,0.0008502,96643.0,96642.0,0.12093141]
[1740358383334,0.1560602,96643.0,96642.0,0.12093141]
[1740358383821,0.1560602,96643.0,96642.0,0.11158492]
[1740358384266,0.1560602,96643.0,96642.0,0.10758492]
[1740358384480,0.1560602,96643.0,96642.0,0.00493923]
[1740358384609,0.1560602,96643.0,96642.0,0.00693923]
[1740358385468,0.1560602,96643.0,96642.0,0.00493923]
[1740358385811,0.1560602,96643.0,96642.0,0.00693923]
[1740358385939,0.1560602,96643.0,96642.0,0.0017004]
[1740358386984,0.1580602,96643.0,96642.0,0.0017004]
[1740358388044,0.1610602,96643.0,96642.0,0.0017004]
[1740358398741,0.1590602,96643.0,96642.0,0.0017004]
[1740358398950,0.1600602,96643.0,96642.0,0.0017004]
[1740358399362,0.3140602,96643.0,96642.0,0.0017004]
[1740358399935,0.3923602,96643.0,96642.0,0.0017004]
[1740358400380,1.4628102,96643.0,96642.0,0.0017004]
[1740358400550,1.2365182,96643.0,96642.0,0.0017004]
[1740358401309,0.8325642,96643.0,96642.0,0.0017004]
[1740358401718,0.8285642,96643.0,96642.0,0.0017004]
[1740358402037,0.6764002,96643.0,96642.0,0.0017004]
[1740358402357,0.5407112,96643.0,96642.0,0.0017004]
[1740358402809,0.5619251,96643.0,96642.0,0.0017004]
[1740358403880,0.5457112,96643.0,96642.0,0.0017004]
[1740358404279,0.8737112,96643.0,96642.0,0.0017004]
[1740358405145,0.305221,96636.0,96635.0,0.0016998]
[1740358405360,0.305221,96636.0,96603.0,0.0805]
[1740358405361,0.15,96635.0,96603.0,0.0805]
[1740358405606,0.305242,96623.0,96622.0,8e-07]
[1740358405805,0.381842,96623.0,96622.0,8e-07]